Cogmind - Beta 10.2 --- EXPLORER MODE // 2022.03.04 @ 17:41:54 // Winter2019/RPGLIKE Player: n8leveler Result: Destroyed by P-80 Master with Gamma Rifle Performance ------------- Evolutions (9) 4500 Regions Visited (15) 3000 Robots Destroyed (305) 1525 Value Destroyed (13618) 13618 Prototype IDs (24) 480 Alien Tech Used (0) 0 Bonus (3467) 3467 TOTAL SCORE: 26590 Bonus ------- High Alert Combat Kills 3349 Follower Combat Kills 241 Friendly Fire -123 Cogmind --------- Core Integrity 0/1600 Matter 300/300 Energy 25/625 System Corruption 0% Temperature Cool (48) Movement Flying (37) Location -1/Command Parts ------- > --- POWER (2) -------- Compact Particle Reactor Light Quantum Reactor > --- PROPULSION (4) --- Impulse Thruster Array Impulse Thruster Array > --- UTILITY (12) ----- Improved Targeting Computer Advanced Targeting Computer Advanced Core Analyzer Improved Stasis Canceller Advanced Transmission Jammer Maneuvering Thrusters Advanced Phase Shifter Layered Medium Armor Plating Centrium Light Armor Plating Advanced Shield Generator Antimissile System Advanced System Shield > --- WEAPON (3) ------- Gamma Rifle Enhanced Quantum Rifle Ion Burst Cannon > --- INVENTORY (4) ---- Light Quantum Reactor Medium Reflective Plating Phase Cannon Stasis Projector Peak State ------------ > --- POWER ------------ Compact Particle Reactor Light Quantum Reactor > --- PROPULSION ------- Impulse Thruster Array Impulse Thruster Array > --- UTILITY ---------- Improved Targeting Computer Advanced Targeting Computer Advanced Core Analyzer Improved Stasis Canceller Advanced Transmission Jammer Maneuvering Thrusters Advanced Phase Shifter Layered Medium Armor Plating Centrium Light Armor Plating Advanced Shield Generator Antimissile System Advanced System Shield > --- WEAPON ----------- Gamma Rifle Enhanced Quantum Rifle Ion Burst Cannon > --- INVENTORY -------- Light Quantum Reactor Improved System Restoration Module Phase Cannon Stasis Projector [Rating: 152] Favorites ----------- Power Cooled Deuterium Engine Engine Cooled Deuterium Engine Power Core Light Fission Core Reactor Compact Particle Reactor Propulsion Improved Cesium-ion Thruster Leg Aluminum Leg Wheel Compact Wheel Hover Unit Hover Unit Flight Unit Improved Cesium-ion Thruster Utility Improved Targeting Computer Device Advanced Weight Redist. System Processor Improved Targeting Computer Hackware System Shield Protection Improved Medium Armor Plating Weapon Ion Burst Cannon Energy Gun EM Pulse Gun Energy Cannon Ion Burst Cannon Ballistic Cannon Flak Cannon Launcher Precision Grenade Launcher Build | -11 -10 -9 -8 -7 -7 -6 -6 -6 -5 -5 -4 -3 -2 -1 -1 ------- Run | Scr Mat Mat Mat Fac Sto Fac Was Fac Fac Ext Fac Res Res Acc Com Slots Evolved 17 | 3 . 1 2 5 . 1 . 1 . . 3 . . 1 . Power 1 | . . . . 1 . . . . . . . . . . . Propulsion 3 | 1 . . . 1 . . . . . . 1 . . . . Utility 11 | 1 . 1 2 3 . 1 . 1 . . 1 . . 1 . Weapon 2 | 1 . . . . . . . . . . 1 . . . . Parts Attached 190 | 7 5 13 14 37 12 27 1 7 3 1 13 7 7 21 15 Power 29 | 1 1 . 4 6 1 5 . . . 1 2 1 1 6 . Engine 10 | 1 1 . 3 3 . 2 . . . . . . . . . Core 7 | . . . 1 3 1 2 . . . . . . . . . Reactor 12 | . . . . . . 1 . . . 1 2 1 1 6 . Propulsion 28 | 2 2 5 . 6 3 3 . . . . 1 . . 3 3 Treads . | . . . . . . . . . . . . . . . . Leg 2 | 2 . . . . . . . . . . . . . . . Wheel 1 | . 1 . . . . . . . . . . . . . . Hover 1 | . . 1 . . . . . . . . . . . . . Flight 24 | . 1 4 . 6 3 3 . . . . 1 . . 3 3 Utility 86 | 2 1 5 6 21 2 13 1 5 2 . 6 3 4 6 9 Device 57 | 1 1 4 3 10 2 10 1 5 . . 3 2 4 5 6 Storage . | . . . . . . . . . . . . . . . . Processor 7 | 1 . . 1 1 . 1 . . . . 1 1 . 1 . Hackware 2 | . . . 1 . . . . . 1 . . . . . . Protection 20 | . . 1 1 10 . 2 . . 1 . 2 . . . 3 Artifact . | . . . . . . . . . . . . . . . . Weapon 47 | 2 1 3 4 4 6 6 . 2 1 . 4 3 2 6 3 Energy Gun 18 | 2 . 2 1 1 3 . . . . . 1 2 . 3 3 Energy Cannon 26 | . 1 1 1 3 2 6 . 2 1 . 3 1 2 3 . Ballistic Gun . | . . . . . . . . . . . . . . . . Ballistic Cannon 2 | . . . 2 . . . . . . . . . . . . Launcher 1 | . . . . . 1 . . . . . . . . . . Special Weapon . | . . . . . . . . . . . . . . . . Impact Weapon . | . . . . . . . . . . . . . . . . Slashing Weapon . | . . . . . . . . . . . . . . . . Piercing Weapon . | . . . . . . . . . . . . . . . . Special Melee Weapon . | . . . . . . . . . . . . . . . . Unidentified Prototypes 22 | . . 1 1 4 4 3 . 1 . 1 1 2 1 1 2 Parts Lost 9 | . . . 1 . . 1 . 1 . . . . . 6 . Power . | . . . . . . . . . . . . . . . . Propulsion . | . . . . . . . . . . . . . . . . Utility 5 | . . . . . . 1 . 1 . . . . . 3 . Weapon 4 | . . . 1 . . . . . . . . . . 3 . Highest Loss Streak 3 | . . . 1 . . 1 . 1 . . . . . 3 . Average Slot Usage (%) 96 | . 93 100 97 99 97 99 100 99 100 100 95 95 95 89 86 Engine 6 | . 14 12 3 4 6 7 12 11 11 10 2 . . . . Core 1 | . . . 7 4 6 4 . . . . . . . . . Reactor 2 | . . . . . . . . . . . 7 10 10 9 9 Flight 16 | . . 24 22 21 20 18 18 17 17 17 15 15 15 14 9 Device 25 | . 14 22 17 23 24 22 25 28 29 29 28 29 30 30 26 Processor 14 | . 14 12 10 10 13 18 18 17 17 17 15 15 15 14 14 Hackware 5 | . . . 10 7 6 6 6 5 5 5 5 5 5 4 4 Protection 5 | . . 1 5 9 6 5 6 5 5 5 5 5 5 1 7 Energy Gun 3 | . 17 12 11 . . . . . . . . 4 5 2 5 Energy Cannon 11 | . 10 12 1 14 12 12 12 11 11 11 13 10 10 11 7 Naked Turns . | . . . . . . . . . . . . . . . . Heaviest Build 79 | 8 13 16 20 51 45 52 53 53 53 54 67 67 64 72 79 Greatest Support 79 | 35 35 23 21 49 51 53 53 53 53 58 70 70 70 70 79 Greatest Overweight (x) 1 | . . . . 1 . 1 . . . . . . 1 1 . Average Overweight (x) . | . . . . . . . . . . . . . . . . Largest Inventory Capacity 4 | 2 2 2 3 3 3 3 3 3 3 3 3 4 4 4 4 Average Capacity 3 | 1 2 2 2 3 3 3 3 3 3 3 3 3 4 4 4 Most Carried 4 | 2 2 2 3 3 3 3 3 3 3 3 3 4 4 4 4 Average Carried 2 | . 1 1 2 2 2 2 3 2 3 3 2 3 4 3 3 Final Capacity 4 | 2 2 2 3 3 3 3 3 3 3 3 3 4 4 4 4 Final Carried 4 | 2 2 2 3 2 3 3 3 3 3 3 3 4 4 2 4 Class Distribution -------------------- 63% | Hacker-Sprinter 31% | Hacker-Mutant Dominant Class ---------------- Hacker-Mutant | -10/Materials Hacker-Mutant | -9/Materials Hacker-Mutant | -8/Materials Hacker-Mutant | -7/Factory Hacker-Sprinter | -7/Storage Hacker-Sprinter | -6/Factory Hacker-Sprinter | -6/Waste Hacker-Sprinter | -6/Factory Hacker-Sprinter | -5/Factory Hacker-Sprinter | -5/Extension Hacker-Sprinter | -4/Factory Hacker-Sprinter | -3/Research Hacker-Sprinter | -2/Research Hacker-Sprinter | -1/Access Hacker-Tank | -1/Command Resources | -11 -10 -9 -8 -7 -7 -6 -6 -6 -5 -5 -4 -3 -2 -1 -1 ----------- Run | Scr Mat Mat Mat Fac Sto Fac Was Fac Fac Ext Fac Res Res Acc Com Matter Collected 2323 | 270 40 110 357 400 120 255 10 106 30 10 52 148 70 167 178 Remotely . | . . . . . . . . . . . . . . . . Salvage Created 12232 | . 18 540 737 1101 610 1648 . 984 1155 548 220 1169 883 1631 988 Parts 639 | . 3 50 53 55 39 107 . 41 53 28 14 44 36 72 44 Haulers Intercepted 2 | . . . . . 1 . . . . . . . . 1 . Recyclers Shooed 3 | . . . . . . . . . . . . . 1 1 1 Parts Field Recycled . | . . . . . . . . . . . . . . . . Retrieved Matter . | . . . . . . . . . . . . . . . . Parts Self-Destructed . | . . . . . . . . . . . . . . . . Prevented . | . . . . . . . . . . . . . . . . Kills | -11 -10 -9 -8 -7 -7 -6 -6 -6 -5 -5 -4 -3 -2 -1 -1 ------- Run | Scr Mat Mat Mat Fac Sto Fac Was Fac Fac Ext Fac Res Res Acc Com Combat Hostiles Destroyed 220 | . . 19 14 20 13 39 . 15 16 10 5 18 15 24 12 Guns 27 | . . 12 5 . 1 . . . . . . 3 . 1 5 Cannons 182 | . . 7 8 19 12 35 . 14 15 9 5 14 14 23 7 AOE 6 | . . . 1 . . 3 . 1 . 1 . . . . . Classes Destroyed 18 | . 1 4 2 3 3 2 . . . 1 . . . 1 1 Worker 16 | . . . 1 1 . 1 . 2 2 2 . . 2 2 3 Builder 8 | . . . . . 1 2 . . 3 . . 1 . 1 . Hauler 2 | . . . . . 1 . . . . . . . . 1 . Recycler 4 | . . . 2 . . . . 1 1 . . . . . . Mechanic 1 | . . . . . 1 . . . . . . . . . . Operator 13 | . . 1 2 1 . 2 . 3 1 . . . 2 1 . Drone 1 | . . . . . . . . . . . . . . 1 . Watcher 42 | . 1 . 3 6 1 5 . 5 4 2 2 1 4 6 2 Swarmer 62 | . . 13 2 . 4 13 . 2 . 2 4 8 4 7 3 Saboteur 2 | . . . . . . 1 . . . . . . 1 . . Grunt 64 | . . 2 8 13 3 12 . 6 9 4 . 2 1 4 . Brawler 4 | . . . . . . 1 . . 1 . . 1 . 1 . Duelist 4 | . . . . 1 . . . 1 . . . 1 1 . . Sentry 45 | . . 4 4 3 4 6 . 4 4 3 1 4 4 2 2 Hunter 18 | . . . . 1 2 2 . 1 . . . 1 2 6 3 Programmer 18 | . . . . 2 . 4 . 1 2 . . 1 2 3 3 Behemoth 1 | . . . . . . . . . . 1 . . . . . Striker 1 | . . . . . . . . . . . . . . . 1 Best Kill Streak 13 | . 1 8 6 5 5 13 . 7 13 5 4 8 7 12 5 Combat Bots Only 10 | . . 8 4 4 4 10 . 6 4 3 4 8 3 10 3 Max Kills in Single Turn 5 | . 1 1 2 1 2 2 . 2 5 2 2 2 2 2 1 Gunslinging . | . . . . . . . . . . . . . . . . Exploded 2 | . . . 1 . . 2 . 1 . 1 . . . . . Melee . | . . . . . . . . . . . . . . . . Uniques/NPCs Destroyed . | . . . . . . . . . . . . . . . . Combat | -11 -10 -9 -8 -7 -7 -6 -6 -6 -5 -5 -4 -3 -2 -1 -1 -------- Run | Scr Mat Mat Mat Fac Sto Fac Was Fac Fac Ext Fac Res Res Acc Com Damage Taken 10703 | . . 408 954 665 530 1139 . 585 562 249 57 705 1007 2855 987 Core 7798 | . . 312 734 461 337 736 . 374 396 167 37 493 745 2287 719 Absorbed by Shields 440 | . . . . 5 . . . . . 53 . . 11 . 371 Redirected to Core 6247 | . . 222 555 344 255 649 . 304 339 141 37 402 605 1850 544 Core Remaining (%) 93 | 100 100 100 73 . 100 . . 89 . 98 100 89 84 . . Volleys Fired 639 | . 1 38 66 73 39 85 . 42 41 25 10 35 50 89 45 Largest 3 | . 2 2 2 2 2 2 . 2 2 2 2 3 3 3 3 Hottest 284 | . 100 108 108 145 145 190 . 194 194 190 190 284 278 284 284 Shots Fired 1306 | . 2 76 101 146 78 166 . 79 82 50 20 85 107 203 111 Gun 191 | . 1 38 56 . 5 . . . . . . 19 9 15 48 Cannon 1115 | . 1 38 45 146 73 166 . 79 82 50 20 66 98 188 63 Launcher . | . . . . . . . . . . . . . . . . Special . | . . . . . . . . . . . . . . . . Kinetic 37 | . . . 37 . . . . . . . . . . . . Thermal 1090 | . 1 38 32 146 78 166 . 42 79 50 20 80 107 159 92 Explosive . | . . . . . . . . . . . . . . . . Electromagnetic 179 | . 1 38 32 . . . . 37 3 . . 5 . 44 19 Robot Hit Streak 62 | . 1 15 39 37 24 26 . 24 62 33 23 21 36 26 49 Robot Miss Streak 4 | . . 1 4 1 1 1 . 1 2 2 1 2 2 2 1 Penetration Max . | . . . . . . . . . . . . . . . . Secondary Targets . | . . . . . . . . . . . . . . . . Shots Hit Robots 943 | . 1 58 91 100 51 128 . 55 69 40 15 72 81 111 71 Core Hits 581 | . 1 25 63 37 22 71 . 47 49 28 10 48 54 79 47 Critical Hits 7 | . . . . . . 3 . . 1 . . 1 1 1 . Critical Kills 2 | . . . . . . 1 . . 1 . . . . . . Critical Parts Destroyed 4 | . . . . . . 2 . . . . . 1 1 . . Melee Attacks . | . . . . . . . . . . . . . . . . Impact . | . . . . . . . . . . . . . . . . Slashing . | . . . . . . . . . . . . . . . . Piercing . | . . . . . . . . . . . . . . . . Sneak Attacks . | . . . . . . . . . . . . . . . . Combat Hostiles . | . . . . . . . . . . . . . . . . Follow-up Attacks . | . . . . . . . . . . . . . . . . Damage Inflicted 40447 | . 20 821 1663 2892 1889 6007 . 3667 4248 2207 711 3445 4213 5842 2822 Guns 3734 | . 20 431 751 . 123 . . . . . . 625 307 376 1101 Cannons 34030 | . . 390 865 2824 1731 5428 . 2860 3526 2034 711 2820 3906 5214 1721 Explosions 2683 | . . . 47 68 35 579 . 807 722 173 . . . 252 . Melee . | . . . . . . . . . . . . . . . . Ramming . | . . . . . . . . . . . . . . . . Kinetic 731 | . . . 731 . . . . . . . . . . . . Thermal 35323 | . . 390 553 2824 1854 5566 . 1968 4133 2207 711 3242 4213 5130 2532 Explosive 1100 | . . . . 68 35 441 . 556 . . . . . . . Electromagnetic 3293 | . 20 431 379 . . . . 1143 115 . . 203 . 712 290 Impact . | . . . . . . . . . . . . . . . . Slashing . | . . . . . . . . . . . . . . . . Piercing . | . . . . . . . . . . . . . . . . Highest Corruption 5 | . . . . 2 2 1 5 5 . . . 1 2 1 . Average Corruption 1 | . . . . 1 2 1 5 3 . . . 1 1 1 . Corruption Purged 12 | . . . . 1 . 1 . 5 . . . . 3 2 . Effects 21 | . . . . 3 9 1 . 5 . . . . 1 2 . Message Errors 6 | . . . . . 2 . . 2 . . . . 1 1 . Matter Fused 2 | . . . . . . . . 2 . . . . . . . Heat Flow Errors 2 | . . . . . 1 . . 1 . . . . . . . Energy Discharges 2 | . . . . . 2 . . . . . . . . . . Data Loss (minor) 3 | . . . . 2 . 1 . . . . . . . . . Targeting Errors 6 | . . . . 1 4 . . . . . . . . 1 . Overload Shots . | . . . . . . . . . . . . . . . . Overflow Damage 1486 | . . . . 132 49 265 . 310 256 98 14 77 187 61 37 Projectiles 1105 | . . . . 104 49 232 . 226 81 65 14 77 187 33 37 Explosions 381 | . . . . 28 . 33 . 84 175 33 . . . 28 . Melee . | . . . . . . . . . . . . . . . . Knockbacks 23 | . . . 23 . . . . . . . . . . . . Impact . | . . . . . . . . . . . . . . . . Kinetic 20 | . . . 20 . . . . . . . . . . . . Secondary 3 | . . . 3 . . . . . . . . . . . . Self-Inflicted Damage 138 | . . . . 39 . 60 . 39 . . . . . . . Shots 3 | . . . . 1 . 1 . 1 . . . . . . . Rammed . | . . . . . . . . . . . . . . . . Targets Rammed . | . . . . . . . . . . . . . . . . Kicked . | . . . . . . . . . . . . . . . . Crushed . | . . . . . . . . . . . . . . . . Highest Temperature 566 | . 21 164 286 12 80 120 . 105 3 . 58 351 368 566 168 Average Temperature 93 | . 14 59 105 5 14 37 . 34 3 . 35 104 82 156 58 Received Heat Transfer 2974 | . . 183 702 396 261 396 . 273 309 73 9 69 183 108 12 Effects 21 | . . . 1 . . . . . . . . 1 7 12 . Shutdowns 5 | . . . . . . . . . . . . . 1 4 . Energy Bleed 5 | . . . 1 . . . . . . . . 1 . 3 . Interference 9 | . . . . . . . . . . . . . 6 3 . Short Circuit 1 | . . . . . . . . . . . . . . 1 . Damage (minor) 1 | . . . . . . . . . . . . . . 1 . Siege Activations . | . . . . . . . . . . . . . . . . Robots Corrupted . | . . . . . . . . . . . . . . . . Combat Hostiles . | . . . . . . . . . . . . . . . . Parts Fried 14 | . . . 2 . . . . 7 1 . . 1 . 2 1 Impact Corruptions . | . . . . . . . . . . . . . . . . Robots Melted 5 | . . . . 1 . 1 . . 1 . . 1 1 . . Combat Hostiles 5 | . . . . 1 . 1 . . 1 . . 1 1 . . Parts Melted 84 | . . 1 1 10 4 14 . 2 10 1 1 5 15 8 12 Heat Transferred 37290 | . . 814 1123 4235 2358 6373 . 1800 3546 1953 659 3227 3957 4715 2530 Parts Sabotaged 1 | . . . . . . . . . . . . . . 1 . Parts Stolen . | . . . . . . . . . . . . . . . . Parts Stripped . | . . . . . . . . . . . . . . . . Power Chain Reactions 2 | . . . 1 . . . . . . . . . . 1 . Missiles Intercepted . | . . . . . . . . . . . . . . . . Alert | -11 -10 -9 -8 -7 -7 -6 -6 -6 -5 -5 -4 -3 -2 -1 -1 ------- Run | Scr Mat Mat Mat Fac Sto Fac Was Fac Fac Ext Fac Res Res Acc Com Peak Influence 1571 | . 83 780 836 944 923 1571 397 466 581 792 244 384 694 1295 1239 Initial 592 | . . . 142 221 311 304 337 214 126 208 184 8 161 224 592 Average 504 | . 38 389 535 302 621 1084 358 262 148 517 187 214 379 957 918 Maximum Alert Level 4 | . . 3 3 3 3 4 1 2 2 3 1 1 2 4 4 Low Security (%) 23 | 100 100 12 9 32 . . . 24 82 . 29 35 9 . . Level 1 29 | . . 47 8 48 20 9 100 71 3 14 70 64 51 5 . Level 2 19 | . . 34 68 10 42 4 . 4 13 73 . . 38 14 17 Level 3 15 | . . 6 13 7 37 24 . . . 12 . . . 41 76 Level 4 12 | . . . . . . 61 . . . . . . . 38 6 Level 5 . | . . . . . . . . . . . . . . . . High Security . | . . . . . . . . . . . . . . . . Max Security . | . . . . . . . . . . . . . . . . Squads Dispatched 54 | . . 2 3 6 4 14 . 3 1 1 1 3 4 9 3 Investigation 15 | . . 1 . 4 . 3 . 1 . 1 1 1 . 3 . Extermination 7 | . . . . 1 . 2 . 1 . . . . 1 1 1 Reinforcement 17 | . . 1 1 1 3 5 . 1 1 . . 1 2 1 . Assault 12 | . . . 1 . . 4 . . . . . . 1 4 2 Garrison 3 | . . . 1 . 1 . . . . . . 1 . . . Intercept . | . . . . . . . . . . . . . . . . Construction Impeded 3 | . . . . . 1 . . . 1 . . . . 1 . Haulers Reinforced 3 | . . . . . . 1 . 1 . . . 1 . . . Stealth | -11 -10 -9 -8 -7 -7 -6 -6 -6 -5 -5 -4 -3 -2 -1 -1 --------- Run | Scr Mat Mat Mat Fac Sto Fac Was Fac Fac Ext Fac Res Res Acc Com Distress Signals 18 | . 1 2 3 3 1 1 . . . 1 . . 1 4 1 Communications Jammed 50 | . . . . . . 15 . 6 . 2 . 3 2 22 . Distress Signals 45 | . . . . . . 14 . 6 . 2 . 1 2 20 . Times Spotted 500 | . 4 45 48 61 23 69 5 24 27 19 7 27 38 64 39 Peak Tracking Total 12 | . 2 9 10 10 5 8 5 6 7 3 2 6 12 11 10 Tactical Retreats 64 | . . 6 6 11 3 5 . 1 2 2 . 3 7 13 5 Traps | -11 -10 -9 -8 -7 -7 -6 -6 -6 -5 -5 -4 -3 -2 -1 -1 ------- Run | Scr Mat Mat Mat Fac Sto Fac Was Fac Fac Ext Fac Res Res Acc Com Traps Triggered 23 | . . . . 3 1 5 . 2 2 5 . 1 3 . 1 Indirectly . | . . . . . . . . . . . . . . . . Trap Hack Attempts . | . . . . . . . . . . . . . . . . Triggered . | . . . . . . . . . . . . . . . . Disarmed . | . . . . . . . . . . . . . . . . Reprogrammed 18 | . . . . . . 8 . . . . . . . 6 4 Reused 2 | . . . . . . 1 . . . . . . . 1 . Traps Extracted . | . . . . . . . . . . . . . . . . Installed . | . . . . . . . . . . . . . . . . Triggered 2 | . . . . . . 1 . . . . . . . 1 . Machines | -11 -10 -9 -8 -7 -7 -6 -6 -6 -5 -5 -4 -3 -2 -1 -1 ---------- Run | Scr Mat Mat Mat Fac Sto Fac Was Fac Fac Ext Fac Res Res Acc Com Machines Disabled 67 | . . 1 . 18 5 8 . 13 10 6 2 . 1 2 1 Max in Single Turn 6 | . . 1 . 6 1 3 . 5 6 1 1 . 1 1 1 Garrison Access 9 | . . . 1 2 . 2 . 1 . . 1 . 1 1 . Energy Cycler 1 | . . . . . . . . . . 1 . . . . . Machines Sabotaged . | . . . . . . . . . . . . . . . . Garrisons Compromised . | . . . . . . . . . . . . . . . . Overloaded Fab Kills . | . . . . . . . . . . . . . . . . Fab Network Shutdowns 2 | . . . . 1 . 1 . . . . . . . . . Hacking | -11 -10 -9 -8 -7 -7 -6 -6 -6 -5 -5 -4 -3 -2 -1 -1 --------- Run | Scr Mat Mat Mat Fac Sto Fac Was Fac Fac Ext Fac Res Res Acc Com Machines Accessed 135 | . 5 6 6 21 6 24 . 20 4 7 6 5 4 16 5 Terminals 75 | . 3 3 2 9 6 11 . 12 2 7 2 . 3 12 3 Fabricators 9 | . . . . 3 . 2 . 2 1 . . 1 . . . Repair Stations 10 | . . . 1 1 . 3 . . . . 1 . . 2 2 Recycling Units 26 | . 2 2 1 4 . 5 . 4 1 . 2 3 1 1 . Scanalyzers 7 | . . 1 1 2 . 1 . 1 . . . 1 . . . Garrison Access 8 | . . . 1 2 . 2 . 1 . . 1 . . 1 . Total Hacks 324 | . 11 17 12 51 12 71 . 45 13 12 18 8 8 35 11 Successful 192 | . 11 12 8 31 5 46 . 25 8 6 9 5 7 15 4 Failed 132 | . . 5 4 20 7 25 . 20 5 6 9 3 1 20 7 Catastrophic 16 | . . . . 2 . 3 . 4 . 1 . . . 6 . Database Lockouts . | . . . . . . . . . . . . . . . . Manual . | . . . . . . . . . . . . . . . . Terminals 188 | . 7 11 4 23 12 32 . 33 9 12 9 . 6 24 6 Fabricators 25 | . . . . 10 . 7 . 3 2 . . 3 . . . Repair Stations 32 | . . . 1 3 . 13 . . . . 4 . . 6 5 Recycling Units 39 | . 4 3 1 6 . 7 . 5 2 . 4 3 2 2 . Scanalyzers 26 | . . 3 4 7 . 8 . 2 . . . 2 . . . Garrison Access 14 | . . . 2 2 . 4 . 2 . . 1 . . 3 . Terminal Hacks 100 | . 7 7 1 12 5 20 . 16 5 6 4 . 5 9 3 Record 7 | . . . . 3 . 3 . . . 1 . . . . . Part Schematic 1 | . . . . . . 1 . . . . . . . . . Robot Analysis 1 | . . . . . . . . 1 . . . . . . . Prototype ID Bank 1 | . . . . 1 . . . . . . . . . . . Open Door 8 | . . . . . 2 . . . . 3 . . . 3 . Level Access Points 2 | . 1 . . . . . . . . . . . . . 1 Branch Access Points 5 | . 1 . . 1 . 1 . . . 1 . . . 1 . Emergency Access Points 10 | . 2 1 . 1 . 2 . 3 . . . . . . 1 Terminal Index 1 | . . . . . . . . 1 . . . . . . . Garrison Index 2 | . . . . . . 1 . 1 . . . . . . . Alert Level 3 | . . . . . . 1 . 2 . . . . . . . Unreport Threat 20 | . . 2 . 2 . 1 . 3 4 . 4 . 2 2 . Locate Traps 7 | . 1 2 1 1 . . . 2 . . . . . . . Reprogram Traps 4 | . . . . . . 2 . . . . . . . 1 1 Dispatch Records 1 | . . . . 1 . . . . . . . . . . . Reinforcement Status 1 | . . . . . . 1 . . . . . . . . . Assault Status 2 | . . . . . . 1 . 1 . . . . . . . Recall Investigation 4 | . . 1 . 1 1 . . . . . . . 1 . . Recall Extermination 2 | . . . . . . 1 . . . . . . . 1 . Recall Reinforcements 2 | . . . . . 1 1 . . . . . . . . . Recall Assault 3 | . . . . . . 2 . . . . . . . 1 . Hauler Manifests 1 | . 1 . . . . . . . . . . . . . . Registered Components 1 | . . . . . . . . . . . . . 1 . . Registered Prototypes 1 | . . . . . 1 . . . . . . . . . . Zone Layout 10 | . 1 1 . 1 . 2 . 2 1 1 . . 1 . . Fabricator Hacks 12 | . . . . 5 . 4 . 2 1 . . . . . . Load Schematic 5 | . . . . 3 . 2 . . . . . . . . . Build 7 | . . . . 2 . 2 . 2 1 . . . . . . Repair Station Hacks 17 | . . . 1 1 . 8 . . . . 1 . . 5 1 Scan Component 11 | . . . 1 1 . 4 . . . . 1 . . 3 1 Repair 6 | . . . . . . 4 . . . . . . . 2 . Recycling Unit Hacks 31 | . 4 2 1 5 . 4 . 4 2 . 3 3 2 1 . Process 1 | . . . . 1 . . . . . . . . . . . Report Inventory 20 | . 2 2 . 2 . 3 . 4 1 . 2 3 1 . . Retrieve Matter 1 | . 1 . . . . . . . . . . . . . . Retrieve Components 9 | . 1 . 1 2 . 1 . . 1 . 1 . 1 1 . Scanalyzer 25 | . . 3 4 6 . 8 . 2 . . . 2 . . . Insert Component 13 | . . 2 2 3 . 4 . 1 . . . 1 . . . Analyze 12 | . . 1 2 3 . 4 . 1 . . . 1 . . . Garrison Access Hacks 7 | . . . 1 2 . 2 . 1 . . 1 . . . . Seal Access 7 | . . . 1 2 . 2 . 1 . . 1 . . . . Unauthorized Hacks . | . . . . . . . . . . . . . . . . Terminals . | . . . . . . . . . . . . . . . . Fabricators . | . . . . . . . . . . . . . . . . Repair Stations . | . . . . . . . . . . . . . . . . Recycling Units . | . . . . . . . . . . . . . . . . Scanalyzers . | . . . . . . . . . . . . . . . . Garrison Access . | . . . . . . . . . . . . . . . . Data Cores Recovered 9 | . . . 1 1 . 1 . 2 1 . . . 2 1 . Used . | . . . . . . . . . . . . . . . . Hacking Detections 92 | . 4 5 2 13 4 18 . 14 2 4 4 4 . 13 5 Full Trace Events 16 | . 1 1 . 4 . 3 . 1 . 1 1 1 . 3 . Feedback Events 1 | . . . . 1 . . . . . . . . . . . Corruption 1 | . . . . 1 . . . . . . . . . . . Feedback Blocked . | . . . . . . . . . . . . . . . . Robot Schematics Acquired . | . . . . . . . . . . . . . . . . Robots Built 1 | . . . . . . . . 1 . . . . . . . Matter 153 | . . . . . . . . 153 . . . . . . . Time 40 | . . . . . . . . 40 . . . . . . . Total Robot Build Rating 1 | . . . . . . . . 1 . . . . . . . Part Schematics Acquired 12 | . . 1 1 3 . 5 . 1 . . . 1 . . . Parts Built 7 | . . . . 1 . 3 . 1 2 . . . . . . Matter 1206 | . . . . 252 . 464 . 256 234 . . . . . . Time 345 | . . . . 67 . 97 . 64 117 . . . . . . Total Part Build Rating 42 | . . . . 4 . 16 . 8 14 . . . . . . Parts Repaired 6 | . . . . . . 4 . . . . . . . 2 . Time 141 | . . . . . . 113 . . . . . . . 28 . Parts Recycled . | . . . . . . . . . . . . . . . . Recycled Matter 30 | . . . . 30 . . . . . . . . . . . Retrieved Matter . | . . . . . . . . . . . . . . . . Retrieved Components 48 | . 6 . 9 12 . 3 . . 10 . 3 . 3 2 . Parts Scanalyzed 12 | . . 1 2 3 . 4 . 1 . . . 1 . . . Part Schematics Acquired 11 | . . 1 1 3 . 4 . 1 . . . 1 . . . Parts Damaged . | . . . . . . . . . . . . . . . . Bothacking | -11 -10 -9 -8 -7 -7 -6 -6 -6 -5 -5 -4 -3 -2 -1 -1 ------------ Run | Scr Mat Mat Mat Fac Sto Fac Was Fac Fac Ext Fac Res Res Acc Com Used RIF Installer . | . . . . . . . . . . . . . . . . Robots Hacked . | . . . . . . . . . . . . . . . . Non-combat . | . . . . . . . . . . . . . . . . Combat . | . . . . . . . . . . . . . . . . Robot Hacks Applied . | . . . . . . . . . . . . . . . . Relay Couplers Released 6 | . . . . . . 3 . . . . . . 1 2 . Machine Destruction 3 | . . . . . . . . . . . . . 1 2 . Programmers 3 | . . . . . . 3 . . . . . . . . . Robots Rewired . | . . . . . . . . . . . . . . . . Allies Hacked . | . . . . . . . . . . . . . . . . Hacks Repelled . | . . . . . . . . . . . . . . . . Allies | -11 -10 -9 -8 -7 -7 -6 -6 -6 -5 -5 -4 -3 -2 -1 -1 -------- Run | Scr Mat Mat Mat Fac Sto Fac Was Fac Fac Ext Fac Res Res Acc Com Total Allies 8 | . . . . . . . . 4 . 4 . . . . . Largest Group 4 | . . . . . . . . 4 3 4 . . . . . Highest-Rated Group 245 | . . . . . . . . 99 93 245 . . . . . Highest-Rated Ally 156 | . . . . . . . . 31 31 156 . . . . . Total Orders . | . . . . . . . . . . . . . . . . Ally Attacks 77 | . . . . . . . . 8 20 49 . . . . . Total Damage 1633 | . . . . . . . . 131 324 1178 . . . . . Kills 14 | . . . . . . . . 4 1 9 . . . . . Allies Corrupted . | . . . . . . . . . . . . . . . . Allies Melted . | . . . . . . . . . . . . . . . . Intel | -11 -10 -9 -8 -7 -7 -6 -6 -6 -5 -5 -4 -3 -2 -1 -1 ------- Run | Scr Mat Mat Mat Fac Sto Fac Was Fac Fac Ext Fac Res Res Acc Com Robot Analysis Total 1 | . . . . . . . . 1 . . . . . . . Derelict Logs Recovered . | . . . . . . . . . . . . . . . . Drone Launches . | . . . . . . . . . . . . . . . . Drone Recoveries . | . . . . . . . . . . . . . . . . Exploration | -11 -10 -9 -8 -7 -7 -6 -6 -6 -5 -5 -4 -3 -2 -1 -1 ------------- Run | Scr Mat Mat Mat Fac Sto Fac Was Fac Fac Ext Fac Res Res Acc Com Turns Passed 10356 | 72 574 765 518 1474 342 1484 25 1064 757 475 272 478 667 778 611 Spaces Moved 17562 | 50 441 675 617 2819 510 3034 80 2433 1011 688 712 1029 1310 1237 916 Core 1 | 1 . . . . . . . . . . . . . . . Treads . | . . . . . . . . . . . . . . . . Legs 254 | 49 205 . . . . . . . . . . . . . . Wheels 207 | . 207 . . . . . . . . . . . . . . Hover . | . . . . . . . . . . . . . . . . Flight 17100 | . 29 675 617 2819 510 3034 80 2433 1011 688 712 1029 1310 1237 916 Fastest Speed 29 | 50 45 37 40 32 30 29 29 29 29 29 29 30 30 30 30 Average Speed 33 | 118 105 40 40 34 30 29 29 29 29 29 29 30 30 30 36 Slowest Speed 120 | 120 120 45 40 107 32 94 29 29 29 29 30 30 100 100 37 Overloaded Moves . | . . . . . . . . . . . . . . . . Propulsion Burnouts . | . . . . . . . . . . . . . . . . Robots Hopped 89 | . . 3 6 16 5 23 . 6 4 2 4 3 4 6 7 Cave-ins Triggered 3 | . . . . . . . . . . . . . . 2 1 Exploration Rate (%) 55 | 5 95 71 52 64 85 81 78 65 29 96 21 27 44 46 31 Regions Visited 15 Branch Regions 3 Pre-discovered Areas . | . . . . . . . . . . . . . . . . Known Exits Taken 13 | 1 1 1 1 1 1 . . 1 1 1 1 1 1 1 . Unknown Exits Taken . | . . . . . . . . . . . . . . . . Scrap Searched . | . . . . . . . . . . . . . . . . Spaces Dug 124 | . . . . 42 6 9 . 5 2 . . . 14 28 18 Terrain Destroyed 515 | . . . 3 97 16 90 . 99 80 44 3 9 19 35 20 Melee . | . . . . . . . . . . . . . . . . Projectile 178 | . . . . 16 13 23 . 10 18 12 3 9 19 35 20 AOE 337 | . . . 3 81 3 67 . 89 62 32 . . . . . Terrain Rammed . | . . . . . . . . . . . . . . . . Walls Destroyed . | . . . . . . . . . . . . . . . . Machines Disabled . | . . . . . . . . . . . . . . . . Actions | -11 -10 -9 -8 -7 -7 -6 -6 -6 -5 -5 -4 -3 -2 -1 -1 --------- Run | Scr Mat Mat Mat Fac Sto Fac Was Fac Fac Ext Fac Res Res Acc Com Total 20698 | 60 547 1087 779 3178 618 3452 80 2683 1367 898 745 1132 1494 1496 1082 Wait 1713 | . 93 331 56 179 28 236 . 181 253 88 . 41 82 74 71 Move 17373 | 49 440 668 604 2788 500 2990 79 2420 1002 683 703 1022 1301 1223 901 Hop 84 | . . 3 6 14 4 21 . 6 4 2 4 3 4 6 7 Pick Up 69 | 4 2 4 6 11 5 12 . 3 . . 1 3 1 10 7 Fast Attach 68 | 5 3 4 4 15 4 7 . 3 . 1 5 4 2 5 6 Attach 36 | 2 . 1 2 4 1 9 . 1 . . 2 . . 9 5 Detach 10 | . . . . 1 . 3 . . . . 1 . . 3 2 Swap 88 | . 2 8 8 18 7 11 1 4 3 . 6 3 5 8 4 Drop 115 | . 6 8 7 26 7 15 . 4 1 1 6 7 5 13 9 Fire 639 | . 1 38 66 73 39 85 . 42 41 25 10 35 50 89 45 Melee . | . . . . . . . . . . . . . . . . Ram . | . . . . . . . . . . . . . . . . Kick . | . . . . . . . . . . . . . . . . Crush . | . . . . . . . . . . . . . . . . Escape Stasis 193 | . . . . 17 . 30 . . 36 90 . . 13 1 6 Rewire . | . . . . . . . . . . . . . . . . Trap . | . . . . . . . . . . . . . . . . Miscellaneous 310 | . . 22 20 32 23 33 . 19 27 8 7 14 31 55 19 Route ------- -11/Scrapyard -10/Materials (discovered 4 exits: *Mat x3 / *Min) -9/Materials (discovered 2 exits: *Mat / *Min) -8/Materials -7/Factory (discovered 6 exits: *Fac x3 / *Sto / *Low x2) -7/Storage -6/Factory (discovered 4 exits: *Fac x2 / *Low x2) -6/Waste -6/Factory (discovered 5 exits: *Fac x3 / *Low x2) -5/Factory -5/Extension (discovered 3 exits: *Fac x2 / *Cet) -4/Factory (discovered 2 exits: *Res / *Upp) -3/Research -2/Research -1/Access -1/Command (discovered 2 exits: Sur x2) History --------- Turn | Location | Event 9 | -11/Scrapyard | Identified exit to Materials 9 | -11/Scrapyard | Discovered exit to Materials (range 16) 28 | -11/Scrapyard | Upgraded with Propulsion slot (x1) 28 | -11/Scrapyard | Upgraded with Utility slot (x1) 28 | -11/Scrapyard | Upgraded with Weapon slot (x1) 73 | -11/Scrapyard | Entered Materials 83 | -10/Materials | Identified exit to Materials 249 | -10/Materials | Identified exit to Mines 318 | -10/Materials | Build established: Hacker-Mutant 647 | -10/Materials | Entered another Materials area 649 | -9/Materials | Reached level 2 649 | -9/Materials | Reached level 3 722 | -9/Materials | Upgraded with Utility slot (x1) 764 | -9/Materials | Reached level 4 896 | -9/Materials | Reached level 5 940 | -9/Materials | Destroyed 8 combat bots 1214 | -9/Materials | Identified exit to Mines 1214 | -9/Materials | Discovered exit to Mines (range 13) 1253 | -9/Materials | Identified exit to Materials 1253 | -9/Materials | Discovered exit to Materials (range 8) 1292 | -9/Materials | Reached level 6 1412 | -9/Materials | Entered another Materials area 1414 | -8/Materials | Reached level 7 1447 | -8/Materials | Upgraded with Utility slot (x1) 1484 | -8/Materials | Garrison activated, responded to threat 1505 | -8/Materials | Reached level 8 1767 | -8/Materials | Reached level 9 1812 | -8/Materials | First assault squad dispatched 1894 | -8/Materials | Upgraded with Utility slot (x1) 1907 | -8/Materials | Identified exit to Factory 1907 | -8/Materials | Discovered exit to Factory (range 10) 1930 | -8/Materials | Entered Factory 1932 | -7/Factory | Reached level 10 1977 | -7/Factory | Upgraded with Utility slot (x1) 2048 | -7/Factory | Identified exit to Storage 2048 | -7/Factory | Identified exit to Lower Caves 2190 | -7/Factory | Reached level 11 2234 | -7/Factory | Upgraded with Propulsion slot (x1) 2251 | -7/Factory | Upgraded with Utility slot (x1) 2544 | -7/Factory | Identified exit to Factory 2544 | -7/Factory | Discovered exit to Factory (range 4) 2569 | -7/Factory | Discovered exit to Factory (range 19) 2924 | -7/Factory | Reached level 12 2926 | -7/Factory | Upgraded with Power slot (x1) 3064 | -7/Factory | Fabricated Imp. Cesium-ion Thruster? 3091 | -7/Factory | Discovered exit to Factory (range 5) 3127 | -7/Factory | Local fabrication network quarantined 3198 | -7/Factory | Reached level 13 3207 | -7/Factory | Upgraded with Utility slot (x1) 3404 | -7/Factory | Entered Storage 3406 | -7/Storage | Reached level 14 3419 | -7/Storage | Build established: Hacker-Sprinter 3481 | -7/Storage | Garrison activated, responded to threat 3558 | -7/Storage | Reached level 15 3569 | -7/Storage | Discovered exit to Factory (range 5) 3746 | -7/Storage | Entered Factory 3748 | -6/Factory | Reached level 16 3920 | -6/Factory | Fabricated Imp. Cesium-ion Thruster? 3934 | -6/Factory | Fabricated Neutrino Core (x2) 3952 | -6/Factory | Local fabrication network quarantined 3985 | -6/Factory | Repaired Plasma Cannon 4080 | -6/Factory | Identified exit to Factory 4080 | -6/Factory | Discovered exit to Factory (range 16) 4089 | -6/Factory | Reached level 17 4096 | -6/Factory | First assault squad dispatched 4138 | -6/Factory | Identified exit to Lower Caves 4202 | -6/Factory | Discovered exit to Factory (range 16) 4353 | -6/Factory | Repaired Imp. Medium Armor Plating 4378 | -6/Factory | Repaired Imp. Transmission Jammer 4382 | -6/Factory | Upgraded with Utility slot (x1) 4399 | -6/Factory | Reached level 18 4426 | -6/Factory | Spotted B-75 Beast 4605 | -6/Factory | Destroyed 10 combat bots 4740 | -6/Factory | Destroyed 8 combat bots 4784 | -6/Factory | Repaired Imp. Medium Armor Plating 4922 | -6/Factory | Reached level 19 5230 | -6/Factory | Sucked down chute 5230 | -6/Factory | Entered Waste 5236 | -6/Waste | Spotted C-40 Crusher 5240 | -6/Waste | Spotted C-40 Crusher 5243 | -6/Waste | Spotted C-40 Crusher 5245 | -6/Waste | EMP discharged 5245 | -6/Waste | Spotted C-40 Crusher 5249 | -6/Waste | Spotted C-40 Crusher 5251 | -6/Waste | Spotted C-40 Crusher 5252 | -6/Waste | Identified exit to Factory 5252 | -6/Waste | Discovered exit to Factory (range 11) 5255 | -6/Waste | Entered Factory 5332 | -6/Factory | Fabricated Com. HERF Cannon (x1) 5435 | -6/Factory | Upgraded with Utility slot (x1) 5437 | -6/Factory | Discovered exit to Lower Caves (range 15) 5453 | -6/Factory | Discovered exit to Factory (range 17) 5707 | -6/Factory | Discovered exit to Factory (range 17) 5801 | -6/Factory | Allied Derelicts emerged from ambush trap array 6011 | -6/Factory | Discovered exit to Lower Caves (range 12) 6056 | -6/Factory | Fabricated K-01 Serf (x1) 6082 | -6/Factory | Spotted B-75 Beast 6126 | -6/Factory | Discovered exit to Factory (range 12) 6319 | -6/Factory | Entered another Factory area 6319 | -5/Factory | Accompanied by 3 allies 6321 | -5/Factory | Reached level 20 6423 | -5/Factory | Reached level 21 6578 | -5/Factory | Fabricated Lgt. Antimatter Reactor (x2) 6859 | -5/Factory | Identified exit to Extension 6859 | -5/Factory | Discovered exit to Extension (range 16) 7076 | -5/Factory | Entered Extension 7078 | -5/Extension | Reached level 22 7115 | -5/Extension | Rescued A7 7130 | -5/Extension | Energy Cycler disabled 7131 | -5/Extension | Rescued a captive Derelict 7131 | -5/Extension | Rescued a captive Derelict 7131 | -5/Extension | Rescued a captive Derelict 7132 | -5/Extension | Rescued a captive Derelict 7133 | -5/Extension | Rescued a captive Derelict 7134 | -5/Extension | Rescued a captive Derelict 7137 | -5/Extension | Rescued a captive Derelict 7139 | -5/Extension | Rescued a captive Derelict 7278 | -5/Extension | Spotted B-75 Beast 7279 | -5/Extension | Spotted B-75 Beast 7284 | -5/Extension | Identified exit to Factory 7284 | -5/Extension | Discovered exit to Factory (range 16) 7326 | -5/Extension | Destroyed B-75 Beast 7390 | -5/Extension | Identified exit to Cetus 7482 | -5/Extension | Discovered exit to Factory (range 10) 7550 | -5/Extension | Extracted ID and sensor layout for unrecognized location from A7's data core 7551 | -5/Extension | Entered Factory 7553 | -4/Factory | Reached level 23 7578 | -4/Factory | Identified exit to Upper Caves 7578 | -4/Factory | Discovered exit to Upper Caves (range 6) 7612 | -4/Factory | Upgraded with Weapon slot (x1) 7614 | -4/Factory | Upgraded with Propulsion slot (x1) 7659 | -4/Factory | Reached level 24 7677 | -4/Factory | Upgraded with Utility slot (x1) 7811 | -4/Factory | Identified exit to Research 7811 | -4/Factory | Discovered exit to Research (range 16) 7823 | -4/Factory | Entered Research 7825 | -3/Research | Reached level 25 8029 | -3/Research | Found Prototype Processor 8029 | -3/Research | Identified Exp. Melee Analysis Suite 8073 | -3/Research | Reached level 26 8149 | -3/Research | Spotted B-86 Titan 8231 | -3/Research | Identified exit to Research 8231 | -3/Research | Discovered exit to Research (range 10) 8269 | -3/Research | Garrison activated, responded to threat 8300 | -3/Research | Destroyed 8 combat bots 8301 | -3/Research | Entered another Research area 8303 | -2/Research | Reached level 27 8303 | -2/Research | Reached level 28 8324 | -2/Research | Found Antimissile System 8661 | -2/Research | Spotted B-90 Cyclops 8770 | -2/Research | Spotted B-90 Cyclops 8784 | -2/Research | Reached level 29 8869 | -2/Research | Identified exit to Access 8869 | -2/Research | Discovered exit to Access (range 3) 8922 | -2/Research | Spotted B-90 Cyclops 8968 | -2/Research | Entered Access 8970 | -1/Access | Reached level 30 8970 | -1/Access | Reached level 31 9070 | -1/Access | Reached level 32 9210 | -1/Access | Spotted B-99 Colossus 9214 | -1/Access | Destroyed 10 combat bots 9243 | -1/Access | Reached level 33 9246 | -1/Access | Repaired Particle Charger 9263 | -1/Access | Repaired Phase Cannon 9341 | -1/Access | Upgraded with Utility slot (x1) 9468 | -1/Access | First assault squad dispatched 9493 | -1/Access | Identified exit to Command 9671 | -1/Access | Spotted B-99 Colossus 9675 | -1/Access | Reached level 34 9676 | -1/Access | Spotted B-99 Colossus 9684 | -1/Access | Crushed by falling debris 9692 | -1/Access | Core integrity fell below 50% 9703 | -1/Access | Crushed by falling debris 9707 | -1/Access | Core integrity fell below 20% 9738 | -1/Access | Lost 3 parts (2u1w) 9746 | -1/Access | Entered Command 9928 | -1/Command | Spotted Executioner 9928 | -1/Command | Spotted Executioner 9928 | -1/Command | Spotted Executioner 9928 | -1/Command | Spotted Executioner 9928 | -1/Command | Spotted Striker 9928 | -1/Command | Spotted Striker 9928 | -1/Command | Spotted Alpha 7 9928 | -1/Command | Spotted Alpha 7 9952 | -1/Command | Destroyed Striker 9992 | -1/Command | Reached level 35 9996 | -1/Command | First assault squad dispatched 10164 | -1/Command | Identified exit to Surface 10219 | -1/Command | Crushed by falling debris 10357 | -1/Command | Destroyed by P-80 Master with Gamma Rifle Last Messages --------------- 10314_ Penetrated by Slug. 10314_ Critical hit. 10315_ Penetrated by Slug. 10315_ Slug penetrates Wall. 10315_ Penetrated by Slug. 10315_ Slug penetrates Wall. 10315_ Field strength at 10. 10316_ Stasis field depleted. 10319_ P-80 Master resets P-80 Master, system corruption cleaned. 10323_ Penetrated by Slug. 10326_ Slug penetrates P-80 Master. 10326_ P-80 Master suffers critical hit. 10326_ Penetrated by Slug. 10326_ Slug penetrates Wall. 10326_ Penetrated by Slug. 10326_ Slug penetrates Wall. 10327_ P-80 Master shuts down. 10329_ Penetrated by Slug. 10329_ Slug penetrates Wall. 10329_ Slug penetrates P-80 Master. Map ----- +----------------------------------------------------+ | ?????????????????????????????????????????????????? | | ?????????????????????????????????????????????????? | | ??????????????###????????????????????????????????? | | ????????????### ###??????????????????????????????? | | ????????????# #??????????????????????????????? | | ????????????#!! #??????????????????????????????? | | ????????????#! ###????????????????????????????? | | ????????????# " ?????????????????????????????? | | ????????????# ##?????????????????????????????? | | ?????#?##???# ! "#?????????????????????????????? | | # # # # #### = #??????????????????????????????? | | #""""###??????????????????????????????? | | ^ ^ + = %#????????????????????????????????? | | ^ + ## #????????????????????????????????? | | ^ ^+ "" #????????????????????????????????? | | ^ + ""%#????????????????????????????????? | | ""## #???????###########??????????????? | | # # # # ###### #???????#""""" #??????????????? | | ???#?####?????# #???????#" " #??????????????? | | ??????????????# #???????#" #??????????????? | | ??????????????# #??????##" " ##########?????? | | #?????????????# #??????#""" """ | | #?????????????# ######### " ##### | | #????????######"# ## #???????????? | | #????????# # ===## p #??????????????? | | #????????# # ===#;@ p #??????????????? | | #????????# # == ###### #####??????????????? | | ?????????# # #????# #??????????????????? | | ?????????# # #????# #??????????????????? | | ?????????# ######+##???# #??????????????????? | | #############+####### ##### #??????????????????? | | %+!%=*= #??????????????????? | | *########### ### #### ##### #????########??????? | | #?????????# ###+#"### ##???# #????# #??????? | | #?????????# ## # #????# #????# =!#??????? | | #?????????# ## % + #????# ###### = #??????? | | #?????????# ## #%#????# + = #??????? | | #?????????# ## " ##???###### # #??????? | | #?????????# ## # "#????????# # #??????? | | #?????????# ## # ##??#######+#########?????? | | #?????????# ######### #???# #?????? | | #???????### ######### #???# #?????? | | +???? #???# "" """ #?????? | | ##??????????##### #???# """" """ #?????? | | #??????????????# #???# """" R" #?????? | | #??????????????# #???# "" """ #?????? | | #??????????????# #???# "" #?????? | | #??????????????# #???# #?????? | | #??????????????# #???# = #?????? | | #??????????????# #???# #?????? | +----------------------------------------------------+ Best States ------------- Heat Dissipation 97 Energy Generation 63 Energy Capacity 830 Matter Stores 300 Matter Capacity 300 Sight Range 17 Robot Scan Range 22 Terrain Scan Density 10 ECM Strength 2 Jamming Range 16 Cloak Strength 2 Additional Mass Support 9 Armor Coverage 450 Resistance: KI 65 Resistance: TH 50 Resistance: EX 50 Resistance: EM 35 Resistance: I 35 Resistance: S 35 Resistance: P 35 Point Defense Rating 240 Weapon Cycling 25 Phase Shifting 15 Evasion (%) 83 Targeting Accuracy 14 Melee Accuracy 12 Core Analysis 10 Energy Filtering 30 Particle Charging 20 Stasis Canceling 2 Offensive Hacking 20 Defensive Hacking 14 Item Schematics ----------------- Hover Unit | -9/Materials | Scanalyzed Imp. Light Armor Plating | -8/Materials | Scanalyzed Imp. Cesium-ion Thruster | -7/Factory | Scanalyzed System Backup Module | -7/Factory | Scanalyzed Energy Filter | -7/Factory | Scanalyzed Neutrino Core | -6/Factory | Hacked Imp. System Backup Module | -6/Factory | Scanalyzed Imp. Transmission Jammer | -6/Factory | Scanalyzed Particle Charger | -6/Factory | Scanalyzed Weapon Cycler | -6/Factory | Scanalyzed Phase Cannon | -6/Factory | Scanalyzed Imp. System Restoration Module | -3/Research | Scanalyzed Robot Schematics ------------------ None Fabricated ------------ Imp. Cesium-ion Thruster | x1 | -7/Factory Imp. Cesium-ion Thruster | x1 | -6/Factory Neutrino Core | x2 | -6/Factory Com. HERF Cannon | x1 | -6/Factory | Preloaded K-01 Serf | x1 | -6/Factory | Preloaded Lgt. Antimatter Reactor | x2 | -5/Factory | Preloaded Alien Tech Used ----------------- None Achievements -------------- None Challenges ------------ None RPGLIKE | -11 -10 -9 -8 -7 -7 -6 -6 -6 -5 -5 -4 -3 -2 -1 -1 --------- Run | Scr Mat Mat Mat Fac Sto Fac Was Fac Fac Ext Fac Res Res Acc Com Levels Raised 34 | . . 5 3 4 2 4 . . 2 1 2 2 3 5 1 XP Earned 57359 | 6000 155 7448 5256 6537 2341 5530 67 1023 2899 1370 1971 4018 4583 6406 1755 XP Spent 51945 | 6000 . 800 3250 13745 1300 2900 550 3700 . 2100 5100 2700 . 9800 . Upgrades 98 | 27 . 1 3 28 2 2 1 2 . 1 3 11 . 17 . Power Slot 1 | . . . . 1 . . . . . . . . . . . Propulsion Slot 3 | 1 . . . 1 . . . . . . 1 . . . . Utility Slot 11 | 1 . 1 2 3 . 1 . 1 . . 1 . . 1 . Weapon Slot 2 | 1 . . . . . . . . . . 1 . . . . Core Integrity 20 | 10 . . . . . . . . . . . 10 . . . Heat Dissipation 12 | 1 . . . 11 . . . . . . . . . . . Energy Generation 4 | . . . . . . 1 1 1 . . . . . 1 . Energy Storage 8 | . . . . . . . . . . . . . . 8 . Mass Support 5 | 3 . . . 1 . . . . . 1 . . . . . Inventory Capacity 4 | 2 . . 1 . . . . . . . . 1 . . . Sight Range 1 | . . . . 1 . . . . . . . . . . . Sensor Range 11 | 4 . . . 6 . . . . . . . . . 1 . Ranged Accuracy 4 | 1 . . . 1 . . . . . . . . . 2 . KI Resistance % 3 | 1 . . . 2 . . . . . . . . . . . TH Resistance % 3 | 1 . . . . . . . . . . . . . 2 . EX Resistance % 3 | 1 . . . . . . . . . . . . . 2 . TH Damage % 3 | . . . . 1 2 . . . . . . . . . . Protomatter Created 3973 | . . 138 245 387 281 716 . 311 367 229 73 248 331 507 140 Integrity Restored 6655 | . . 358 444 734 502 703 . 376 626 151 123 318 667 1233 420 Core 6192 | . . 312 444 734 354 703 . 287 516 151 53 318 667 1233 420 Parts 463 | . . 46 . . 148 . . 89 110 . 70 . . . . Protomatter Decayed 1959 | . 108 14 97 67 39 456 . 206 175 414 29 133 108 113 . Game ------ Seed SubatomicGatlingScanner Manual? 0 Play Time 06:21:02 Cumulative 122.6 hours Start 2022.01.07 @ 13:07:25 End 2022.03.04 @ 17:41:54 Sessions 5 Manual Loads 0 Difficulty Explorer Special Mode Winter2019/RPGLIKE Game No. 64 Rogue 43 Adventurer 0 Explorer 21 Win Type - Total 1 Types 1/0/0/0/0/0/0/0/0 Lore% 21 Gallery% 56 Achievement% 42 Wizard Run 0 Options --------- ASCII 0 Keyboard 0 Movement Mouse Keybinds 0 Fullscreen 2 Font 14/SmallcapsGlow Map View 72x54 Tactical HUD 1 Map Filters NONE Filters NONE Steam 1 RUN: c6080f3c-ead4-4ba0-a18a-36924176f0df